fUSD/lending_fUSD_20260329
["ID","MTS","AMOUNT","RATE_DAILY","PERIOD"]
[419029696,1774785048148,-500.0,0.00015973,2]
[419029697,1774785048157,-500.0,0.00015973,2]
[419029698,1774785048166,-500.0,0.00015973,2]
[419029699,1774785048176,-333.0408257,0.0001599,2]
[419029700,1774785048186,-174.463704,0.00015997,2]
[419029701,1774785048196,-157.32120586,0.00015997,2]
[419029702,1774785048206,-254.15408543,0.00015999,2]
[419029703,1774785048216,-1079.3194623,0.00015999,5]
[419029704,1774785048227,-1969585.95305864,0.00016,2]
[419029705,1774785048275,-597.032921,0.00016,2]
[419029706,1774785048395,-151.0,0.00012617,2]
[419029707,1774785048404,-1106.95201895,0.00013635,2]
[419029708,1774785048440,-9476.21347152,0.00013635,2]
[419029709,1774785048450,-33349.41643067,0.00016,2]
[419029710,1774785048461,-19029.13707399,0.00016,2]
[419029711,1774785048531,-6667.26990554,0.00016,2]
[419029712,1774785049146,-151.0,0.00012617,2]
[419029713,1774785049156,-182.34045251,0.00014546,2]
[419029714,1774785049854,-999.48948383,0.00012502,2]
[419029715,1774785049865,-10583.16549047,0.00014012,2]
[419029716,1774785049876,-238.20654749,0.00014546,2]
[419029717,1774785049886,-5377.47029016,0.00016,2]
[419029720,1774786058225,4007.42492617,8e-05,2]
[419029721,1774786058252,3371.21201401,8e-05,2]
[419029722,1774786209475,6628.79798599,9.5e-05,3]
[419029723,1774786209508,10000.01,9.5e-05,3]
[419029724,1774786209543,10000.01,9.5e-05,3]
[419029725,1774786209577,10000.01,9.5e-05,3]
[419029726,1774786209631,10000.01,9.5e-05,3]
[419029727,1774786209683,10000.01,9.5e-05,3]
[419029728,1774786209723,10000.01,9.5e-05,3]
[419029729,1774786209763,10000.01,9.5e-05,3]
[419029730,1774786209799,10000.01,9.5e-05,3]
[419029731,1774786209834,10000.01,9.5e-05,3]
[419029732,1774786209881,76914.34729105,9.5e-05,3]
[419029733,1774786209922,19741.53983215,9.5e-05,3]
[419029741,1774786232494,-200.0,0.00012467,2]
[419029742,1774786232504,-2500.0,0.00012485,2]
[419029743,1774786232514,-300.0,0.00012494,2]
[419029744,1774786232523,-1200.0,0.00012494,2]
[419029745,1774786232532,-300.0,0.00012494,2]
[419029746,1774786232542,-2500.0,0.00012495,2]
[419029747,1774786232551,-2500.0,0.00012495,2]
[419029748,1774786232561,-2500.0,0.00012495,2]
[419029749,1774786232570,-1000.0,0.00012502,2]
[419029750,1774786232580,-173.19,0.00012513,2]
[419029751,1774786232590,-150.0,0.00012539,2]
[419029752,1774786232599,-1887.26,0.00012588,2]
[419029753,1774786232609,-150.0,0.000126,2]
[419029754,1774786232619,-166.66,0.00012618,2]
[419029755,1774786232628,-151.0,0.00012702,2]
[419029756,1774786232638,-151.0,0.00012933,2]
[419029757,1774786232647,-150.0,0.00012935,2]
[419029758,1774786232658,-578.20924308,0.00012936,2]
[419029759,1774786232668,-500.0,0.00012936,2]
[419029760,1774786232678,-9552.16786547,0.00012936,2]
[419029761,1774786232687,-151.0,0.00012936,2]
[419029762,1774786232696,-174.61919141,0.00012936,2]
[419029763,1774786232706,-262.90206542,0.00012936,2]
[419029764,1774786232715,-151.0,0.0001295,2]
[419029765,1774786232724,-500.0,0.00012991,2]
[419029766,1774786232734,-9905.5980765,0.00012991,2]
[419029767,1774786232743,-151.0,0.00012991,2]
[419029768,1774786232752,-272.62944185,0.00012991,2]
[419029769,1774786232762,-250.0,0.00013,2]
[419029770,1774786232772,-166.66,0.00013034,2]
[419029771,1774786232781,-500.0,0.00013046,2]
[419029772,1774786232790,-10272.10520533,0.00013046,2]
[419029773,1774786232800,-151.0,0.00013046,2]
[419029774,1774786232809,-282.71673119,0.00013046,2]
[419029775,1774786232818,-500.0,0.00013101,2]
[419029776,1774786232827,-10652.17309792,0.00013101,2]
[419029777,1774786232836,-151.0,0.00013101,2]
[419029778,1774786232845,-293.17725025,0.00013101,2]
[419029779,1774786232854,-500.0,0.00013156,2]
[419029780,1774786232863,-11046.30350255,0.00013156,2]
[419029781,1774786232872,-151.0,0.00013156,2]
[419029782,1774786232882,-304.02480851,0.00013156,2]
[419029783,1774786232891,-173.19,0.00013209,2]
[419029784,1774786232900,-500.0,0.00013211,2]
[419029785,1774786232909,-11455.01673214,0.00013211,2]
[419029786,1774786232918,-151.0,0.00013211,2]
[419029787,1774786232927,-315.27372642,0.00013211,2]
[419029788,1774786232936,-500.0,0.00013266,2]
[419029789,1774786232945,-11878.85235123,0.00013266,2]
[419029790,1774786232955,-151.0,0.00013266,2]
[419029791,1774786232964,-326.9388543,0.00013266,2]
[419029792,1774786232973,-500.0,0.00013321,2]
[419029793,1774786232982,-12318.36988823,0.00013321,2]
[419029794,1774786232993,-151.0,0.00013321,2]
[419029795,1774786233002,-339.03559191,0.00013321,2]
[419029796,1774786233012,-500.0,0.00013376,2]
[419029797,1774786233021,-12774.14957409,0.00013376,2]
[419029798,1774786233030,-151.0,0.00013376,2]
[419029799,1774786233041,-500.0,0.00013431,2]
[419029800,1774786233052,-13246.79310833,0.00013431,2]
[419029801,1774786233065,-151.0,0.00013431,2]
[419029802,1774786233075,-166.66,0.00013451,2]
[419029803,1774786233086,-181.08010149,0.00013484,2]
[419029804,1774786233095,-500.0,0.00013486,2]
[419029805,1774786233105,-3974.4873504,0.00013486,2]
[419029806,1774786233114,-151.0,0.00013486,2]
[419029807,1774786233123,-501.0,0.00013589,2]
[419029808,1774786233132,-300.0,0.000136,4]
[419029809,1774786233142,-293.04,0.00013622,2]
[419029810,1774786233151,-500.0,0.00013673,2]
[419029811,1774786233160,-500.0,0.00013673,2]
[419029812,1774786233169,-500.0,0.00013673,2]
[419029813,1774786233178,-500.0,0.00013673,2]
[419029814,1774786233187,-500.0,0.00013673,2]
[419029815,1774786233197,-500.0,0.00013673,2]
[419029816,1774786233206,-500.0,0.00013673,2]
[419029817,1774786233215,-500.0,0.00013673,2]
[419029818,1774786233424,-500.0,0.00013673,2]
[419029819,1774786233438,-500.0,0.00013673,2]
[419029820,1774786233449,-500.0,0.00013673,2]
[419029821,1774786233458,-500.0,0.00013673,2]
[419029822,1774786233468,-500.0,0.00013673,2]
[419029823,1774786233478,-500.0,0.00013673,2]
[419029824,1774786233487,-500.0,0.00013673,2]
[419029825,1774786233496,-500.0,0.00013673,2]
[419029826,1774786233506,-500.0,0.00013673,2]
[419029827,1774786233515,-500.0,0.00013673,2]
[419029828,1774786233524,-500.0,0.00013673,2]
[419029829,1774786233534,-500.0,0.00013673,2]
[419029830,1774786233543,-500.0,0.00013673,2]
[419029831,1774786233553,-500.0,0.00013673,2]
[419029832,1774786233563,-157.66887562,0.00013673,2]
[419029833,1774786233573,-500.0,0.00013673,2]
[419029834,1774786233582,-500.0,0.00013673,2]
[419029835,1774786233592,-500.0,0.00013673,2]
[419029836,1774786233602,-500.0,0.00013673,2]
[419029837,1774786233611,-500.0,0.00013673,2]
[419029838,1774786233621,-500.0,0.00013673,2]
[419029839,1774786233630,-500.0,0.00013673,2]
[419029840,1774786233640,-500.0,0.00013673,2]
[419029841,1774786233650,-500.0,0.00013673,2]
[419029842,1774786233659,-500.0,0.00013673,2]
[419029843,1774786233669,-500.0,0.00013673,2]
[419029844,1774786233678,-500.0,0.00013673,2]
[419029845,1774786233689,-500.0,0.00013673,2]
[419029846,1774786233699,-500.0,0.00013673,2]
[419029847,1774786233708,-500.0,0.00013673,2]
[419029848,1774786233718,-500.0,0.00013673,2]
[419029849,1774786233727,-500.0,0.00013673,2]
[419029850,1774786233737,-500.0,0.00013673,2]
[419029851,1774786233747,-500.0,0.00013673,2]
[419029852,1774786233756,-550.0,0.00013673,2]
[419029853,1774786233767,-500.0,0.00013673,2]
[419029854,1774786233776,-500.0,0.00013673,2]
[419029855,1774786233786,-500.0,0.00013673,2]
[419029856,1774786233795,-500.0,0.00013673,2]
[419029857,1774786233805,-500.0,0.00013673,2]
[419029858,1774786233814,-500.0,0.00013673,2]
[419029859,1774786233824,-500.0,0.00013673,2]
[419029860,1774786233835,-500.0,0.00013673,2]
[419029861,1774786233845,-500.0,0.00013673,2]
[419029862,1774786233855,-500.0,0.00013673,2]
[419029863,1774786233865,-500.0,0.00013673,2]
[419029864,1774786233875,-500.0,0.00013673,2]
[419029865,1774786233886,-500.0,0.00013674,2]
[419029866,1774786233897,-1428.38747117,0.00013674,2]
[419029867,1774786233906,-500.0,0.00013674,2]
[419029868,1774786233916,-500.0,0.00013674,2]
[419029869,1774786233926,-500.0,0.00013674,2]
[419029870,1774786233936,-500.0,0.00013674,2]
[419029871,1774786233946,-500.0,0.00013674,2]
[419029872,1774786233955,-500.0,0.00013674,2]
[419029873,1774786233966,-500.0,0.00013674,2]
[419029874,1774786233976,-500.0,0.00013674,2]
[419029875,1774786233986,-500.0,0.00013674,2]
[419029876,1774786233995,-500.0,0.00013674,2]
[419029877,1774786234004,-200.0,0.00013674,2]
[419029878,1774786234015,-500.0,0.00013674,2]
[419029879,1774786234025,-500.0,0.00013674,2]
[419029880,1774786234035,-500.0,0.00013674,2]
[419029881,1774786234045,-500.0,0.00013674,2]
[419029882,1774786234055,-500.0,0.00013674,2]
[419029883,1774786234065,-500.0,0.00013674,2]
[419029884,1774786234074,-500.0,0.00013674,2]
[419029885,1774786234083,-500.0,0.00013674,2]
[419029886,1774786234093,-500.0,0.00013674,2]
[419029887,1774786234103,-500.0,0.00013674,2]
[419029888,1774786234112,-500.0,0.00013674,2]
[419029889,1774786234122,-500.0,0.00013674,2]
[419029890,1774786234131,-500.0,0.00013674,2]
[419029891,1774786234141,-500.0,0.00013674,2]
[419029892,1774786234151,-500.0,0.00013674,2]
[419029893,1774786234160,-151.0,0.00013674,2]
[419029894,1774786234169,-500.0,0.00013674,2]
[419029895,1774786234179,-500.0,0.00013674,2]
[419029896,1774786234189,-151.0,0.00013674,2]
[419029897,1774786234198,-500.0,0.00013674,2]
[419029898,1774786234207,-500.0,0.00013674,2]
[419029899,1774786234217,-151.0,0.00013674,2]
[419029900,1774786234227,-500.0,0.00013674,2]
[419029901,1774786234236,-500.0,0.00013674,2]
[419029902,1774786234245,-500.0,0.00013674,2]
[419029903,1774786234255,-151.0,0.00013674,2]
[419029904,1774786234264,-500.0,0.00013674,2]
[419029905,1774786234273,-500.0,0.00013674,2]
[419029906,1774786234283,-151.0,0.00013674,2]
[419029907,1774786234292,-500.0,0.00013674,2]
[419029908,1774786234302,-151.0,0.00013674,2]
[419029909,1774786234311,-151.0,0.00013674,2]
[419029910,1774786234321,-151.0,0.00013674,2]
[419029911,1774786234331,-151.0,0.00013674,2]
[419029912,1774786234340,-151.0,0.00013674,2]
[419029913,1774786234350,-151.0,0.00013674,2]
[419029914,1774786234359,-151.0,0.00013674,2]
[419029915,1774786234368,-151.0,0.00013674,2]
[419029916,1774786234378,-151.0,0.00013674,2]
[419029917,1774786234387,-151.0,0.00013674,2]
[419029918,1774786234397,-151.0,0.00013674,2]
[419029919,1774786234406,-151.0,0.00013674,2]
[419029920,1774786234416,-151.0,0.00013674,2]
[419029921,1774786234425,-151.0,0.00013674,2]
[419029922,1774786234435,-250.0,0.00013674,2]
[419029923,1774786234444,-151.0,0.00013674,2]
[419029924,1774786234453,-250.0,0.00013674,2]
[419029925,1774786234463,-151.0,0.00013674,2]
[419029926,1774786234473,-250.0,0.00013674,2]
[419029927,1774786234482,-250.0,0.00013674,2]
[419029928,1774786234492,-250.0,0.00013674,2]
[419029929,1774786234502,-250.0,0.00013674,2]
[419029930,1774786234512,-250.0,0.00013674,2]
[419029931,1774786234522,-279.9045709,0.00013674,2]
[419029932,1774786234532,-250.0,0.00013674,2]
[419029933,1774786234541,-250.0,0.00013674,2]
[419029934,1774786234550,-250.0,0.00013674,2]
[419029935,1774786234560,-250.0,0.00013674,2]
[419029936,1774786234570,-1386.78395259,0.00013674,2]
[419029937,1774786234580,-743.50770149,0.00013674,2]
[419029938,1774786234590,-200.0,0.00013699,2]
[419029939,1774786234600,-700.0,0.000137,5]
[419029940,1774786234609,-300.0,0.00013709,2]
[419029941,1774786234621,-420.0,0.00013709,2]
[419029942,1774786234630,-300.0,0.00013714,2]
[419029943,1774786234640,-300.0,0.00013714,2]
[419029944,1774786234649,-300.0,0.00013714,2]
[419029945,1774786234658,-300.0,0.00013714,2]
[419029946,1774786234668,-300.0,0.00013714,2]
[419029947,1774786234678,-583.32809582,0.00013714,2]
[419029948,1774786234693,-16.67190418,0.00013714,2]
[419029949,1774786234703,-600.0,0.00013714,2]
[419029950,1774786234712,-600.0,0.00013714,2]
[419029951,1774786234722,-600.0,0.00013714,2]
[419029952,1774786234732,-600.0,0.00013714,2]
[419029953,1774786234741,-2500.0,0.00013714,2]
[419029954,1774786234751,-500.0,0.00013714,2]
[419029955,1774786234760,-500.0,0.00013714,2]
[419029956,1774786234770,-500.0,0.00013714,2]
[419029957,1774786234779,-500.0,0.00013714,2]
[419029958,1774786234788,-500.0,0.00013714,2]
[419029959,1774786234798,-200.0,0.00013714,2]
[419029960,1774786234807,-200.0,0.00013714,2]
[419029961,1774786234817,-200.0,0.00013714,2]
[419029962,1774786234826,-200.0,0.00013714,2]
[419029963,1774786234835,-200.35838575,0.00013714,2]
[419029964,1774786234845,-1680.0,0.00013743,2]
[419029965,1774786234861,-173.89,0.00013798,2]
[419029966,1774786234871,-1100.0,0.000138,5]
[419029967,1774786234880,-166.66,0.00013868,2]
[419029968,1774786234890,-196.8513,0.000139,2]
[419029969,1774786234900,-1500.0,0.000139,5]
[419029970,1774786234910,-173.19,0.00013904,2]
[419029971,1774786234920,-2500.0,0.00013972,2]
[419029972,1774786234930,-257.3058631,0.00013973,2]
[419029973,1774786234940,-539.47574211,0.00013973,2]
[419029974,1774786234949,-9275.9116676,0.00013973,2]
[419029975,1774786234959,-504.0,0.00014,2]
[419029976,1774786234969,-504.0,0.00014,2]
[419029977,1774786234978,-187.78006525,0.00014032,2]
[419029978,1774786234988,-255.0,0.00014034,2]
[419029979,1774786234998,-347.0,0.00014055,2]
[419029980,1774786235008,-222.02721714,0.00014063,2]
[419029981,1774786235018,-211.04844024,0.00014072,2]
[419029982,1774786235027,-500.0,0.00014072,2]
[419029983,1774786235037,-500.0,0.00014072,2]
[419029984,1774786235047,-408.02494411,0.00014072,2]
[419029985,1774786235057,-632.97314699,0.00014072,2]
[419029986,1774786235067,-500.0,0.00014072,2]
[419029987,1774786235077,-500.0,0.00014072,2]
[419029988,1774786235087,-500.0,0.00014072,2]
[419029989,1774786235096,-500.0,0.00014072,2]
[419029990,1774786235107,-500.0,0.00014072,2]
[419029991,1774786235116,-500.0,0.00014072,2]
[419029992,1774786235125,-500.0,0.00014072,2]
[419029993,1774786235135,-500.0,0.00014072,2]
[419029994,1774786235145,-500.0,0.00014072,2]
[419029995,1774786235155,-500.0,0.00014072,2]
[419029996,1774786235164,-256.45873067,0.00014072,2]
[419029997,1774786235174,-500.0,0.00014072,2]
[419029998,1774786235183,-1079.3194623,0.00014072,5]
[419029999,1774786235194,-500.0,0.00014072,2]
[419030000,1774786235203,-500.0,0.00014072,2]
[419030001,1774786235213,-500.0,0.00014072,2]
[419030002,1774786235223,-500.0,0.00014072,2]
[419030003,1774786235232,-500.0,0.00014072,2]
[419030004,1774786235241,-500.0,0.00014072,2]
[419030005,1774786235251,-500.0,0.00014072,2]
[419030006,1774786235260,-500.0,0.00014072,2]
[419030007,1774786235271,-500.0,0.00014072,2]
[419030008,1774786235280,-500.0,0.00014072,2]
[419030009,1774786235290,-500.0,0.00014072,2]
[419030010,1774786235300,-22828.85756367,0.00014073,2]
[419030011,1774786235315,-21361.74384199,0.00014073,2]
[419030017,1774786238030,-352.48414858,0.00014073,2]
[419030019,1774786240394,-2455456.91444576,0.00014073,2]
[419030020,1774786240404,-500.0,0.00014073,2]
[419030021,1774786240414,-500.0,0.00014073,2]
[419030022,1774786240423,-1451.31,0.000141,2]
[419030023,1774786240432,-2607.63,0.000141,2]
[419030024,1774786240442,-660.29,0.000141,2]
[419030025,1774786240452,-2083.72,0.000141,2]
[419030026,1774786240461,-1248.31,0.000141,2]
[419030027,1774786240470,-20042.85,0.000141,2]
[419030028,1774786240480,-396.27231048,0.00014116,2]
[419030029,1774786240489,-4835.48,0.00014151,2]
[419030030,1774786240499,-160.0,0.0001416,2]
[419030031,1774786240509,-959.8630956,0.0001416,2]
[419030032,1774786240519,-160.0,0.0001416,2]
[419030033,1774786240529,-989.2,0.00014189,2]
[419030034,1774786240538,-1481.23780761,0.00014222,2]
[419030035,1774786240548,-200.0,0.00014222,2]
[419030036,1774786240558,-290.26104003,0.00014222,2]
[419030037,1774786240567,-771.01748645,0.00014222,2]
[419030038,1774786240577,-154.51188614,0.00014246,2]
[419030039,1774786240587,-166.66,0.00014284,2]
[419030040,1774786240596,-346.710772,0.00014348,7]
[419030041,1774786240606,-215.540012,0.00014348,7]
[419030042,1774786240616,-160.0,0.00014348,7]
[419030043,1774786240626,-9275.91166755,0.00014353,2]
[419030044,1774786240635,-2468.0,0.00014487,2]
[419030045,1774786240645,-6013.0,0.00014487,2]
[419030046,1774786240655,-194.72792766,0.0001458,2]
[419030047,1774786240665,-359.233353,0.00014588,7]
[419030048,1774786240674,-165.342554,0.00014588,7]
[419030049,1774786240684,-231.343314,0.00014588,7]
[419030050,1774786240694,-173.19,0.00014599,2]
[419030051,1774786240704,-1000.0,0.00014621,2]
[419030052,1774786240713,-1000.0,0.00014621,2]
[419030053,1774786240723,-222.02721714,0.00014631,2]
[419030054,1774786240732,-500.0,0.0001464,2]
[419030055,1774786240742,-500.0,0.0001464,2]
[419030056,1774786240751,-500.0,0.0001464,2]
[419030057,1774786240761,-500.0,0.0001464,2]
[419030058,1774786240770,-500.0,0.0001464,2]
[419030059,1774786240780,-500.0,0.0001464,2]
[419030060,1774786240789,-500.0,0.0001464,2]
[419030061,1774786240799,-848113.56372398,0.00014641,2]
[419030062,1774786240977,-312.49533366,0.00014641,2]
[419030076,1774786243189,-309.16589121,0.00013626,2]
[419030077,1774786243199,-190.83410879,0.000146,2]
[419030078,1774786243386,-9.16589121,0.000146,2]
[419030079,1774786243396,-5521.83410879,0.00014641,2]
[419030080,1774786243704,-13480.00597075,0.00014641,2]
[419030083,1774786245989,-415.0,0.00014487,2]
[419030084,1774786245998,-4003.88196997,0.00014641,2]
[419030085,1774786246187,1600.0,7.799e-05,2]
[419030086,1774786246435,-409.63280582,0.00014,2]
[419030087,1774786246445,-397.8783024,0.00014641,2]
[419030088,1774786246490,-720.69661148,0.00014641,2]
[419030089,1774786246503,-1180.128,0.00014641,2]
[419030090,1774786246546,-28028.11980498,0.00014641,2]
[419030093,1774786246703,1027.43,7.984e-05,2]
[419030094,1774786247215,1600.0,8.119e-05,2]
[419030095,1774786247723,910.0,8.443e-05,2]
[419030096,1774786248229,706.49,8.639e-05,2]
[419030097,1774786248735,800.0,8.819e-05,2]
[419030098,1774786249247,1361.72,8.948e-05,2]
[419030099,1774786249759,1308.04,9.16e-05,2]
[419030100,1774786332837,893.25,6.818e-05,2]
[419030101,1774786333040,893.25,7.177e-05,2]
[419030102,1774786333238,893.25,7.536e-05,2]
[419030103,1774786333439,893.25,7.895e-05,2]
[419030104,1774786333644,893.25,8.254e-05,2]
[419030105,1774786333879,893.25,8.612e-05,2]
[419030106,1774786335101,893.25,8.971e-05,2]
[419030107,1774786335297,893.25,9.33e-05,2]
[419030108,1774786335521,893.25,9.689e-05,2]
[419030109,1774786335706,893.25,0.00010048,2]
[419030110,1774786339672,893.25,0.00010407,2]
[419030111,1774786566866,-160.0,0.00015067,7]
[419030112,1774786566895,-238.856703,0.00015523,7]
[419030113,1774786566953,-450.566807,0.00016574,7]
[419030114,1774786566978,-204.0,0.00017,7]
[419030115,1774786592518,177.63569,0.00014761,7]
[419030116,1774786611906,306.798432,0.00014761,7]
[419030117,1774786618905,-151.0,0.000181,30]
[419030118,1774786656747,-1368.42429235,0.0002,120]
[419030119,1774786657055,211.31593358,0.0002,120]
[419030120,1774786675662,162.6,1.8e-05,2]
[419030121,1774786682701,216.770282,0.0001434,7]
[419030122,1774786689253,281.604254,0.00016312,7]
[419030123,1774786694898,-3655.46353835,0.00024384,120]
[419030124,1774786695604,303.52162819,0.0002,120]
[419030125,1774786730408,-500.0,0.00025475,120]
[419030126,1774786757315,-500.0,0.0002674,120]
[419030127,1774786764197,262.830638,0.0001434,7]
[419030128,1774786774947,266.453536,0.0001434,7]
[419030129,1774786783712,150.0,0.00015932,30]
[419030130,1774786784453,150.0,0.00016905,30]
[419030131,1774786784519,3780.0,0.00025423,120]
[419030132,1774786784866,150.0,0.00017877,30]
[419030133,1774786800395,-500.0,0.00028005,120]
[419030134,1774786800972,1019.78675223,0.00025423,120]
[419030135,1774786823369,165.82,9.428e-05,2]
[419030136,1774786824818,416.0,0.0002365,120]
[419030137,1774786826268,416.0,0.00024832,120]
[419030138,1774786836537,-416.0,0.00026074,120]
[419030139,1774786836565,-416.0,0.00027378,120]
[419030140,1774786836595,-416.0,0.00028746,120]
[419030141,1774786836618,-500.0,0.0002927,120]
[419030142,1774786836641,-4233.0,0.0003,120]
[419030143,1774786836663,-165.79381909,0.0003,120]
[419030144,1774786836685,-181.34011213,0.0003,120]
[419030145,1774786836707,-168.67627954,0.0003008,120]
[419030146,1774786864839,268.71379,0.00016311,7]
[419030147,1774786883057,-1000.0,0.0003016,120]
[419030148,1774786883081,-416.0,0.00030184,120]
[419030149,1774786883102,-195.07,0.00030411,120]
[419030150,1774786883123,-500.0,0.00030535,120]
[419030151,1774786918629,179.142526,0.00014183,7]
[419030152,1774786962460,-416.0,0.00031693,120]
[419030153,1774786989572,3481.10474304,0.0001041,2]
[419030154,1774786998093,-500.0,0.00027393,120]
[419030155,1774786998131,-1504.0,0.0003169,120]
[419030156,1774786998157,-500.0,0.00031692,120]
[419030157,1774787042447,386.33,0.00010094,2]
[419030158,1774787210012,-1007.23642882,0.00010494,2]
[419030168,1774787431980,-268.0,0.0001051,2]
[419030170,1774787431990,-31.23478,0.0001051,2]
[419030171,1774787432003,-129.08622152,0.0001051,2]
[419030172,1774787432012,-627.26841197,0.00010765,2]
[419030173,1774787432027,-265.98158803,0.00010765,2]
[419030174,1774787432037,-166.66,0.00011063,2]
[419030175,1774787432046,-212.06893939,0.00011124,2]
[419030176,1774787432058,-681.18106061,0.00011124,2]
[419030177,1774787432068,-166.66,0.00011296,2]
[419030178,1774787432077,-150.0,0.000113,2]
[419030179,1774787432087,-155.42,0.00011346,2]
[419030180,1774787432096,-893.25,0.00011483,2]
[419030181,1774787432106,-300.0,0.00011499,2]
[419030182,1774787432115,-1200.0,0.00011499,2]
[419030183,1774787432125,-300.0,0.00011499,2]
[419030184,1774787432135,-379.4,0.000115,2]
[419030185,1774787432144,-2211.88,0.000115,2]
[419030186,1774787432154,-1171.02,0.000115,2]
[419030187,1774787432163,-1561.24,0.00011507,2]
[419030188,1774787432172,-166.66,0.00011529,2]
[419030189,1774787432181,-150.0,0.00011553,2]
[419030190,1774787432191,-200.0,0.00011554,2]
[419030191,1774787432200,-500.0,0.00011554,2]
[419030192,1774787432210,-500.0,0.00011554,2]
[419030193,1774787432220,-500.0,0.00011554,2]
[419030194,1774787432230,-500.0,0.00011554,2]
[419030195,1774787432239,-500.0,0.00011554,2]
[419030196,1774787432248,-500.0,0.00011554,2]
[419030197,1774787432257,-500.0,0.00011554,2]
[419030198,1774787432266,-500.0,0.00011554,2]
[419030199,1774787432276,-151.0,0.00011554,2]
[419030200,1774787432285,-151.0,0.00011554,2]
[419030201,1774787432295,-500.0,0.00011554,2]
[419030202,1774787432305,-21.05287006,0.00011554,2]
[419030205,1774787432354,-129.94712994,0.00011554,2]
[419030207,1774787432364,-500.0,0.00011554,2]
[419030209,1774787432374,-151.0,0.00011554,2]
[419030211,1774787432384,-500.0,0.00011554,2]
[419030213,1774787432394,-151.0,0.00011554,2]
[419030215,1774787432404,-500.0,0.00011554,2]
[419030217,1774787432414,-151.0,0.00011554,2]
[419030219,1774787432423,-500.0,0.00011554,2]
[419030221,1774787432436,-152.03777968,0.00011554,2]
[419030223,1774787432446,-151.0,0.00011554,2]
[419030225,1774787432455,-584.87479624,0.00011554,2]
[419030227,1774787432464,-151.0,0.00011554,2]
[419030229,1774787432473,-151.0,0.00011554,2]
[419030231,1774787432482,-151.0,0.00011554,2]
[419030233,1774787432492,-151.0,0.00011554,2]
[419030234,1774787432502,-1521.19189966,0.00011561,2]
[419030236,1774787432511,-2263.79296737,0.00011561,2]
[419030239,1774787432523,-236.20703263,0.00011561,2]
[419030241,1774787432533,-379.52319439,0.00011561,2]
[419030243,1774787432544,-994.68708973,0.00011561,2]
[419030246,1774787432555,-1125.78971588,0.00011561,2]
[419030248,1774787432565,-2500.0,0.00011561,2]
[419030250,1774787432574,-2500.0,0.00011561,2]
[419030252,1774787432583,-2500.0,0.00011561,2]
[419030254,1774787432593,-166.66,0.00011762,2]
[419030256,1774787432602,-893.25,0.00011842,2]
[419030258,1774787432612,-166.66,0.00011994,2]
[419030260,1774787432621,-200.0,0.00012102,2]
[419030262,1774787432630,-893.25,0.00012201,2]
[419030264,1774787432640,-166.66,0.00012227,2]
[419030266,1774787432649,-234.43,0.00012345,2]
[419030268,1774787432659,-151.0,0.00012423,2]
[419030270,1774787432668,-893.25,0.0001256,2]
[419030272,1774787432677,-196.8487,0.000126,2]
[419030274,1774787432686,-200.0,0.000126,4]